lending/lending_fUSD_20251114
["ID","MTS","AMOUNT","RATE_DAILY","PERIOD"]
[393943984,1763124632774,-151.0,0.00016776,2]
[393943986,1763124632785,-151.0,0.00016776,2]
[393943988,1763124632795,-151.0,0.00016776,2]
[393943990,1763124632805,-151.0,0.00016776,2]
[393943992,1763124632815,-151.0,0.00016776,2]
[393943994,1763124632824,-151.0,0.00016776,2]
[393943996,1763124632834,-151.0,0.00016783,2]
[393943998,1763124632843,-500.0,0.00016784,2]
[393944000,1763124632853,-500.0,0.00016784,2]
[393944002,1763124632861,-500.65233627,0.00016784,2]
[393944003,1763124632873,-500.0,0.00016784,2]
[393944006,1763124632883,-500.0,0.00016784,2]
[393944007,1763124632894,-500.0,0.00016784,2]
[393944010,1763124632905,-500.0,0.00016784,2]
[393944012,1763124632914,-270.36782202,0.00016784,2]
[393944014,1763124632924,-410.93360718,0.00016784,2]
[393944016,1763124632939,-196.94135343,0.00016784,2]
[393944018,1763124632951,-500.0,0.00016784,2]
[393944020,1763124632961,-500.0,0.00016784,2]
[393944022,1763124632971,-500.0,0.00016784,2]
[393944024,1763124632981,-500.0,0.00016784,2]
[393944026,1763124632991,-500.0,0.00016784,2]
[393944028,1763124633000,-500.0,0.00016784,2]
[393944030,1763124633011,-567.29802372,0.00016784,2]
[393944032,1763124633021,-500.0,0.00016784,2]
[393944034,1763124633033,-500.0,0.00016784,2]
[393944036,1763124633043,-500.0,0.00016784,2]
[393944038,1763124633053,-500.0,0.00016784,2]
[393944040,1763124633063,-500.0,0.00016784,2]
[393944042,1763124633073,-500.0,0.00016784,2]
[393944044,1763124633083,-500.0,0.00016784,2]
[393944046,1763124633094,-500.0,0.00016784,2]
[393944048,1763124633105,-500.0,0.00016784,2]
[393944050,1763124633115,-500.0,0.00016784,2]
[393944052,1763124633126,-500.0,0.00016784,2]
[393944054,1763124633135,-500.0,0.00016784,2]
[393944056,1763124633145,-500.0,0.00016784,2]
[393944058,1763124633157,-500.0,0.00016784,2]
[393944060,1763124633167,-500.0,0.00016784,2]
[393944062,1763124633176,-500.0,0.00016784,2]
[393944064,1763124633191,-500.0,0.00016784,2]
[393944066,1763124633200,-500.0,0.00016784,2]
[393944068,1763124633210,-500.0,0.00016784,2]
[393944070,1763124633220,-560.98223452,0.00016784,2]
[393944072,1763124633230,-500.0,0.00016784,2]
[393944074,1763124633240,-500.0,0.00016784,2]
[393944076,1763124633250,-500.0,0.00016784,2]
[393944078,1763124633260,-500.0,0.00016784,2]
[393944080,1763124633269,-500.0,0.00016784,2]
[393944082,1763124633279,-500.0,0.00016784,2]
[393944084,1763124633288,-500.0,0.00016784,2]
[393944086,1763124633297,-500.0,0.00016784,2]
[393944088,1763124633307,-500.0,0.00016784,2]
[393944090,1763124633317,-500.0,0.00016784,2]
[393944092,1763124633327,-500.0,0.00016784,2]
[393944094,1763124633336,-150.00000001,0.00016784,2]
[393944096,1763124633346,-500.0,0.00016784,2]
[393944098,1763124633356,-500.0,0.00016784,2]
[393944100,1763124633365,-500.0,0.00016784,2]
[393944102,1763124633374,-500.0,0.00016784,2]
[393944104,1763124633384,-500.0,0.00016784,2]
[393944106,1763124633393,-500.0,0.00016784,2]
[393944108,1763124633402,-500.0,0.00016784,2]
[393944110,1763124633412,-500.0,0.00016784,2]
[393944120,1763124633597,-500.0,0.00016784,2]
[393944122,1763124633607,-500.0,0.00016784,2]
[393944124,1763124633616,-500.0,0.00016784,2]
[393944126,1763124633625,-500.0,0.00016784,2]
[393944128,1763124633634,-500.0,0.00016784,2]
[393944130,1763124633643,-500.0,0.00016784,2]
[393944132,1763124633652,-592.24,0.00016785,2]
[393944134,1763124633663,-335.67136514,0.00016785,2]
[393944136,1763124633673,-184.66822767,0.00016785,2]
[393944138,1763124633682,-165.84756101,0.00016785,2]
[393944140,1763124633698,-500.0,0.00016786,2]
[393944142,1763124633709,-500.0,0.00016786,2]
[393944144,1763124633719,-500.0,0.00016786,2]
[393944146,1763124633728,-500.0,0.00016786,2]
[393944148,1763124633739,-500.0,0.00016786,2]
[393944150,1763124633749,-562.27093051,0.00016786,2]
[393944152,1763124633758,-500.0,0.00016786,2]
[393944154,1763124633767,-104632.88827341,0.00016786,2]
[393944183,1763124634040,-53998.36877604,0.00016786,2]
[393944185,1763124634052,-82648.61104649,0.00016786,2]
[393944187,1763124634064,-178720.13190406,0.00016786,2]
[393944189,1763124634074,-1000.0,0.00016786,2]
[393944191,1763124634084,-250.0,0.000168,3]
[393944193,1763124634093,-150.0,0.000168,2]
[393944195,1763124634103,-510.17377737,0.0001682,2]
[393944197,1763124634112,-500.0,0.0001682,2]
[393944199,1763124634121,-311.33520426,0.0001682,2]
[393944201,1763124634131,-500.0,0.0001682,2]
[393944203,1763124634140,-500.0,0.0001682,2]
[393944205,1763124634149,-6993.37084958,0.00016821,2]
[393944207,1763124634159,-198.89759256,0.00016821,2]
[393944209,1763124634168,-5192.66090242,0.00016821,2]
[393944211,1763124634178,-1058.77803,0.0001683,2]
[393944213,1763124634192,-1058.77803,0.0001683,2]
[393944215,1763124634202,-1058.77803,0.0001683,2]
[393944217,1763124634211,-1058.77803,0.0001685,2]
[393944219,1763124634221,-1058.77803,0.0001687,2]
[393944221,1763124634230,-500.0,0.00016886,2]
[393944223,1763124634240,-176.31303096,0.00016886,2]
[393944225,1763124634250,-551.61822093,0.00016886,2]
[393944227,1763124634259,-500.0,0.00016886,2]
[393944229,1763124634268,-500.0,0.00016886,2]
[393944231,1763124634277,-785.10327177,0.00016886,2]
[393944233,1763124634286,-3346.2575209,0.00016911,2]
[393944235,1763124634296,-3207.3083471,0.00016911,2]
[393944237,1763124634305,-8498.4782645,0.00016911,2]
[393944240,1763124634313,-1525.6268244,0.00016911,2]
[393944242,1763124634324,-52237.1649486,0.00016911,2]
[393944244,1763124634333,-210.0,0.00016934,2]
[393944246,1763124634341,-6993.37084958,0.00016956,2]
[393944248,1763124634350,-198.89759256,0.00016956,2]
[393944250,1763124634359,-5192.66090242,0.00016956,2]
[393944252,1763124634368,-503.1340747,0.00016973,2]
[393944253,1763124634377,-501.91631598,0.00016973,2]
[393944255,1763124634387,-502.72635091,0.00016973,2]
[393944257,1763124634396,-500.0,0.00016973,2]
[393944259,1763124634405,-500.0,0.00016973,2]
[393944261,1763124634414,-569.20872666,0.00016973,2]
[393944263,1763124634423,-501.25798024,0.00016973,2]
[393944265,1763124634433,-49047.35733276,0.00016986,2]
[393944268,1763124634447,-1254.41808677,0.00016986,2]
[393944270,1763124634458,-517.01695779,0.00016986,2]
[393944272,1763124634469,-953.4525,0.00016986,2]
[393944274,1763124634480,-928.52587715,0.00016986,2]
[393944277,1763124634495,-1607.71924553,0.00016986,2]
[393944279,1763124634504,-161.01,0.00016999,2]
[393944281,1763124634514,-150.0,0.00017,2]
[393944283,1763124634524,-6936.66231553,0.00017,2]
[393944285,1763124634535,-4250.00000007,0.00017,2]
[393944287,1763124634546,-18972.0,0.00017,2]
[393944300,1763124634655,-18420.78352629,0.00017,2]
[393944302,1763124634666,-463.43465661,0.00017,2]
[393944304,1763124634677,-1252.249969,0.00017,2]
[393944306,1763124634697,-5067.29777754,0.00017,2]
[393944313,1763124634754,-9710.3,0.00017,2]
[393944315,1763124634766,-1351.83433506,0.00017,2]
[393944338,1763124634987,224.93654492,0.000166,2]
[393944611,1763124638735,-38156.72273365,0.00017,2]
[393944612,1763124638843,-39430.19233227,0.00017,2]
[393944613,1763124638853,-250.0,0.00017,2]
[393944614,1763124638864,-200.0,0.00017,2]
[393944615,1763124638874,-200.0,0.00017,2]
[393944616,1763124638884,-1058.77803,0.00017,2]
[393944617,1763124638894,-1868.48,0.00017024,2]
[393944618,1763124638904,-541.86,0.00017037,2]
[393944619,1763124638914,-592.24,0.00017059,2]
[393944620,1763124638924,-506.72807808,0.00017073,2]
[393944621,1763124638934,-501.62506393,0.00017073,2]
[393944622,1763124638948,-500.0,0.00017073,2]
[393944634,1763124639125,-500.0,0.00017073,2]
[393944636,1763124639135,-589.88555763,0.00017073,2]
[393944638,1763124639146,-500.0,0.00017073,2]
[393944641,1763124639156,-6993.37084958,0.00017091,2]
[393944643,1763124639166,-198.89759256,0.00017091,2]
[393944645,1763124639177,-5192.66090242,0.00017091,2]
[393944647,1763124639189,-500.0,0.00017091,2]
[393944649,1763124639200,-56303.05902702,0.00017091,2]
[393944650,1763124639210,-151.0,0.00017154,2]
[393944651,1763124639219,-151.0,0.00017158,2]
[393944653,1763124639230,-151.0,0.00017158,2]
[393944655,1763124639240,-151.0,0.0001716,2]
[393944657,1763124639250,-200.0,0.0001717,2]
[393944659,1763124639261,-200.0,0.0001717,2]
[393944661,1763124639272,-150.0,0.000172,2]
[393944663,1763124639282,-6993.37084958,0.00017226,2]
[393944665,1763124639292,-198.89759256,0.00017226,2]
[393944667,1763124639302,-5192.66090242,0.00017226,2]
[393944669,1763124639311,-230.0,0.00017258,2]
[393944671,1763124639322,-503.0,0.0001726,2]
[393944673,1763124639332,-168.0,0.0001728,2]
[393944675,1763124639342,-1800.0,0.000173,6]
[393944677,1763124639351,-1000.0,0.00017321,2]
[393944679,1763124639361,-351.17997703,0.00017321,2]
[393944681,1763124639370,-512.74339849,0.00017321,2]
[393944682,1763124639379,-549.76676754,0.00017321,2]
[393944684,1763124639389,-1000.0,0.00017321,2]
[393944686,1763124639399,-1004.65985304,0.00017321,2]
[393944688,1763124639409,-592.24,0.00017333,2]
[393944690,1763124639419,-200.0,0.00017342,2]
[393944692,1763124639428,-200.0,0.00017342,2]
[393944694,1763124639444,-6993.37084958,0.0001736,2]
[393944696,1763124639454,-198.89759256,0.0001736,2]
[393944698,1763124639464,-5192.66090242,0.0001736,2]
[393944700,1763124639473,-150.0,0.000174,2]
[393944702,1763124639483,-2800.0,0.000174,6]
[393944704,1763124639492,-2953.0,0.00017427,2]
[393944706,1763124639502,-2953.0,0.00017441,2]
[393944707,1763124639512,-6993.37084958,0.00017495,2]
[393944709,1763124639522,-198.89759256,0.00017495,2]
[393944711,1763124639532,-5192.66090242,0.00017495,2]
[393944713,1763124639541,-3700.0,0.000175,6]
[393944715,1763124639550,-200.0,0.00017515,2]
[393944717,1763124639560,-1000.0,0.00017521,2]
[393944719,1763124639570,-150.0,0.000176,2]
[393944721,1763124639579,-4600.0,0.000176,6]
[393944723,1763124639588,-592.24,0.00017607,2]
[393944725,1763124639597,-1003.95087049,0.00017621,2]
[393944727,1763124639607,-336.53101736,0.00017621,2]
[393944729,1763124639617,-1000.0,0.00017621,2]
[393944731,1763124639627,-6993.37084958,0.0001763,2]
[393944733,1763124639636,-198.89759256,0.0001763,2]
[393944735,1763124639646,-5192.66090242,0.0001763,2]
[393944737,1763124639655,-575.0,0.00017691,2]
[393944739,1763124639664,-1318.0,0.00017691,2]
[393944741,1763124639673,-3429.0,0.00017691,2]
[393944743,1763124639682,-608.0,0.00017691,2]
[393944745,1763124639698,-821.0,0.00017691,2]
[393944747,1763124639707,-1598.0,0.00017691,2]
[393944749,1763124639717,-1190.0,0.00017691,2]
[393944751,1763124639726,-1275.0,0.00017691,2]
[393944753,1763124639737,-814.0,0.00017691,2]
[393944755,1763124639747,-2145.0,0.00017691,2]
[393944757,1763124639755,-560.0,0.00017691,2]
[393944759,1763124639766,-6669.0,0.00017691,2]
[393944761,1763124639776,-2812.78215203,0.00017691,2]
[393944767,1763124639828,-1928.51087201,0.00017691,2]
[393944769,1763124639839,-1744.70697596,0.00017691,2]
[393944771,1763124639848,-2953.0,0.00017696,2]
[393944773,1763124639857,-151.0,0.00017696,2]
[393944775,1763124639867,-340.057313,0.00017696,2]
[393944777,1763124639876,-340.057313,0.00017696,2]
[393944779,1763124639885,-340.057313,0.00017696,2]
[393944781,1763124639895,-340.057313,0.00017696,2]
[393944783,1763124639904,-900.0,0.000177,6]
[393944785,1763124639913,-150.0,0.00017704,2]
[393944787,1763124639923,-163.54,0.0001773,2]
[393944789,1763124639932,-500.0,0.00017753,2]
[393944791,1763124639947,-6367.73161698,0.00017757,2]
[393944793,1763124639958,-310.42991999,0.00017757,2]
[393944802,1763124640035,-2803.9317027,0.00017757,2]
[393944804,1763124640047,-447.66174487,0.00017757,2]
[393944838,1763124640363,-1725.93199606,0.00017757,2]
[393944840,1763124640372,-161.007965,0.00017765,2]
[393944842,1763124640382,-151.958183,0.00017765,2]
[393944844,1763124640391,-1055.99365594,0.00017765,2]
[393944847,1763124640403,-5937.37719364,0.00017765,2]
[393944849,1763124640412,-198.89759256,0.00017765,2]
[393944851,1763124640421,-5192.66090242,0.00017765,2]
[393944853,1763124640431,-2958.31021137,0.00017775,2]
[393944855,1763124640447,-590.40031294,0.00017775,2]
[393944857,1763124640456,-365.14968706,0.0001779,2]
[393944864,1763124640519,-33.55461923,0.0001779,2]
[393944869,1763124640553,-101.29569371,0.0001779,2]
[393944871,1763124640562,-321.47676555,0.0001779,2]
[393944873,1763124640574,-150.0,0.000178,2]
[393944875,1763124640583,-165.13573673,0.000178,2]
[393944877,1763124640592,-900.0,0.000178,6]
[393944879,1763124640601,-165.13573668,0.0001782,2]
[393944881,1763124640610,-101.19606733,0.0001783,2]
[393944886,1763124640649,-987.48293267,0.0001783,2]
[393944888,1763124640658,-168.244,0.00017832,2]
[393944890,1763124640667,-165.13573668,0.0001784,2]
[393944893,1763124640687,-200.0,0.00017856,2]
[393944896,1763124640709,-165.13573668,0.0001786,2]
[393944898,1763124640718,-1036.5192739,0.00017868,2]
[393944900,1763124640728,-249.29306359,0.00017874,2]
[393944902,1763124640738,-165.13573668,0.0001788,2]
[393944904,1763124640748,-592.24,0.00017881,2]
[393944906,1763124640758,-1046.3635198,0.000179,3]
[393945104,1763124645667,-930.0,0.000179,3]
[393945111,1763124645727,-459.864,0.000179,3]
[393945115,1763124645760,-63.7724802,0.000179,3]
[393945117,1763124645769,-151.0,0.000179,2]
[393945119,1763124645779,-35.33809422,0.000179,2]
[393945127,1763124645843,-302.09327878,0.000179,2]
[393945129,1763124645852,-151.0,0.000179,2]
[393945131,1763124645861,-151.069191,0.000179,2]
[393945133,1763124645870,-530.35181018,0.000179,2]
[393945135,1763124645880,-6993.37084958,0.000179,2]
[393945137,1763124645889,-198.89759256,0.000179,2]
[393945139,1763124645898,-900.0,0.000179,6]
[393945141,1763124645908,-2500.0,0.000179,3]
[393945143,1763124645917,-5192.66090242,0.000179,2]
[393945145,1763124645927,-165.13573668,0.000179,2]
[393945147,1763124645936,-231.84961978,0.000179,2]
[393945149,1763124645948,-500.0,0.000179,2]
[393945151,1763124645958,-500.0,0.000179,2]
[393945153,1763124645967,-500.0,0.000179,2]
[393945155,1763124645977,-181.0,0.00017918,2]
[393945157,1763124645986,-2600.7353026,0.00017945,2]
[393945160,1763124645996,-1632.0,0.00017973,2]
[393945161,1763124646005,-2994.0,0.00017976,2]
[393945164,1763124646014,-2953.0,0.00017977,2]
[393945166,1763124646024,-1000.0,0.00017978,2]
[393945168,1763124646033,-183.55934417,0.0001799,2]
[393945170,1763124646042,-1779.19442135,0.00017998,2]
[393945172,1763124646051,-181.0,0.00017998,2]
[393945174,1763124646061,-151.0,0.00017999,2]
[393945176,1763124646070,-347.07296921,0.00017999,5]
[393945177,1763124646079,-300.0,0.00017999,2]
[393945179,1763124646088,-300.0,0.00017999,2]
[393945181,1763124646097,-300.0,0.00017999,2]
[393945183,1763124646106,-300.0,0.00017999,2]
[393945186,1763124646116,-300.0,0.00017999,2]
[393945187,1763124646125,-500.0,0.00017999,2]
[393945190,1763124646135,-525.1332938,0.00017999,2]
[393945191,1763124646144,-500.0,0.00017999,2]
[393945193,1763124646153,-500.0,0.00017999,2]
[393945195,1763124646162,-500.0,0.00017999,2]
[393945198,1763124646171,-500.0,0.00017999,2]
[393945200,1763124646180,-256.50445864,0.00018,2]
[393945203,1763124646189,-64993.39229874,0.00018,2]
[393945232,1763124646406,-409.55999997,0.00018,2]
[393945235,1763124646418,-4750.0,0.00018,2]
[393945238,1763124646429,-923.29075546,0.00018,2]
[393945247,1763124646466,-9525.0,0.00018,2]
[393945256,1763124646526,-949.5,0.00018,2]
[393945258,1763124646538,-4129.90871947,0.00018,2]
[393945261,1763124646549,-553.523,0.00018,2]
[393945295,1763124646877,-1452.01192522,0.00018,2]
[393945320,1763124661329,200.0,0.00041063,30]
[393945321,1763124669352,224.93654491,0.000166,2]
[393945324,1763124893976,801.48664608,0.00016586,2]
[393945325,1763124962107,200.0,0.0004107,30]
[393945326,1763124974799,3000.0,0.0004107,120]
[393945327,1763124997878,536.19544145,0.0004107,120]
[393945328,1763125028605,3000.0,0.0004107,120]
[393945329,1763125051342,158.99900025,0.00016586,2]
[393945330,1763125155309,268.15495945,0.000164,2]
[393945334,1763125223713,1000.0,0.00013699,2]
[393945335,1763125242184,166.66,0.00015792,2]
[393945336,1763125242407,166.66,0.00016125,2]
[393945337,1763125242630,166.66,0.00016457,2]
[393945338,1763125260869,200.0,0.0004108,30]
[393945339,1763125264525,2500.0,0.00016584,2]
[393945340,1763125281402,6000.03,0.00016541,2]
[393945341,1763125281426,10000.01,0.00016541,2]
[393945342,1763125281450,10000.01,0.00016541,2]
[393945343,1763125281477,10000.01,0.00016541,2]
[393945344,1763125281501,3630.87,0.00016541,2]
[393945346,1763125426379,150.0,0.00016,2]
[393945347,1763125434798,1000.0,0.00016501,2]
[393945348,1763125441929,300.0,0.00016583,2]
[393945350,1763125540011,200.0,0.0001646,2]
[393945351,1763125560748,200.0,0.00041082,30]
[393945352,1763125621957,300.0,0.00016583,2]
[393945353,1763125622248,1000.0,0.00041082,30]
[393945354,1763125623611,1000.0,0.00041082,30]
[393945355,1763125627976,1000.0,0.00041082,30]
[393945356,1763125629075,1000.0,0.00041082,30]
[393945357,1763125629950,1000.0,0.00041082,30]
[393945358,1763125630406,1000.0,0.00041082,30]
[393945359,1763125632998,1000.0,0.00041082,30]
[393945360,1763125634019,1000.0,0.00041082,30]
[393945361,1763125634777,1000.0,0.00041082,30]
[393945362,1763125635628,1000.0,0.00041082,30]
[393945363,1763125636454,1000.0,0.00041082,30]
[393945364,1763125637261,1000.0,0.00041082,30]
[393945365,1763125638021,1000.0,0.00041082,30]
[393945366,1763125639128,1000.0,0.00041082,30]
[393945367,1763125657081,200.0,0.00041082,120]
[393945368,1763125664441,1200.0,0.00016583,2]
[393945369,1763125681197,-704.66,0.00024658,30]
[393945370,1763125681252,-704.66,0.00029704,30]
[393945371,1763125681282,-150.0,0.00030137,60]
[393945372,1763125681309,-150.0,0.00030137,60]
[393945373,1763125681336,-150.0,0.00030137,60]
[393945374,1763125681368,-150.0,0.00030137,60]
[393945375,1763125681394,-150.0,0.00030137,60]
[393945376,1763125681420,-153.73508204,0.00030137,60]
[393945377,1763125681445,-150.0,0.00030137,60]
[393945378,1763125681471,-500.0,0.00030137,60]
[393945379,1763125681500,-151.47375103,0.00030137,60]
[393945380,1763125681527,-150.0,0.00030137,60]
[393945381,1763125681552,-151.50305967,0.00030137,60]
[393945382,1763125681577,-150.0,0.00030137,60]
[393945383,1763125681601,-150.0,0.00030137,60]
[393945384,1763125681626,-150.0,0.00030137,60]
[393945385,1763125681654,-150.0,0.00030137,60]
[393945386,1763125681679,-150.0,0.00030137,60]
[393945387,1763125681704,-500.0,0.00030137,60]
[393945388,1763125681728,-150.0,0.00030137,60]
[393945389,1763125681757,-150.0,0.00030137,60]
[393945390,1763125681783,-150.0,0.00030137,60]
[393945391,1763125681808,-500.0,0.00030137,60]
[393945392,1763125681836,-500.0,0.00030137,60]
[393945393,1763125681862,-500.0,0.00030137,60]
[393945394,1763125681890,-500.0,0.00030137,60]
[393945395,1763125681917,-500.0,0.00030137,60]
[393945396,1763125681943,-219.9961856,0.00030137,60]
[393945397,1763125681968,-150.0,0.00030137,60]
[393945398,1763125681994,-152.25031276,0.00030137,60]
[393945399,1763125682023,-150.0,0.00030137,60]
[393945400,1763125682055,-202.30096397,0.00030137,60]
[393945401,1763125682083,-150.0,0.00030137,60]
[393945402,1763125682111,-150.0,0.00030137,60]
[393945403,1763125682137,-150.0,0.00030137,60]
[393945404,1763125682163,-150.0,0.00030137,60]
[393945405,1763125682190,-150.0,0.00030137,60]
[393945406,1763125682214,-500.0,0.00030137,60]
[393945407,1763125682241,-500.0,0.00030137,60]
[393945408,1763125682267,-150.0,0.00030137,60]
[393945409,1763125682294,-455.0,0.00030137,60]
[393945410,1763125682321,-500.0,0.00030137,60]
[393945411,1763125682348,-150.0,0.00030137,60]
[393945412,1763125682379,-1033.0,0.00030137,60]
[393945413,1763125682408,-150.0,0.00030164,60]
[393945414,1763125682438,-150.0,0.00030164,60]
[393945415,1763125682468,-150.0,0.00030164,60]
[393945416,1763125682500,-150.67541823,0.00030164,60]
[393945417,1763125682529,-150.0,0.00030164,60]
[393945418,1763125682557,-150.0,0.00030164,60]
[393945419,1763125682586,-500.0,0.00030164,60]
[393945420,1763125682613,-150.0,0.00030164,60]
[393945421,1763125682639,-158.68025731,0.00030164,60]
[393945422,1763125682665,-150.0,0.00030164,60]
[393945423,1763125682692,-156.94298258,0.00030164,60]
[393945424,1763125682719,-150.0,0.00030164,60]
[393945425,1763125682744,-150.0,0.00030164,60]
[393945426,1763125682770,-500.0,0.00030164,60]
[393945427,1763125682798,-150.0,0.00030164,60]
[393945428,1763125682826,-152.08263774,0.00030164,60]
[393945429,1763125682852,-150.0,0.00030164,60]
[393945430,1763125682878,-150.0,0.00030164,60]
[393945431,1763125682905,-150.0,0.00030164,60]
[393945432,1763125682931,-150.0,0.00030164,60]
[393945433,1763125682959,-150.0,0.00030164,60]
[393945434,1763125682989,-156.05625151,0.00030164,60]
[393945435,1763125683018,-500.0,0.00030164,60]
[393945436,1763125683050,-500.0,0.00030164,60]
[393945437,1763125683079,-455.0,0.00030164,60]
[393945438,1763125683108,-500.0,0.00030164,60]
[393945439,1763125683134,-1033.0,0.00030164,60]
[393945440,1763125683160,-150.0,0.00030192,60]
[393945441,1763125683188,-150.0,0.00030192,60]
[393945442,1763125683214,-161.92886018,0.00030192,60]
[393945443,1763125683244,-192.88505187,0.00030192,60]
[393945444,1763125683271,-158.4033594,0.00030192,60]
[393945445,1763125683302,-500.0,0.00030192,60]
[393945446,1763125683332,-150.0,0.00030192,60]
[393945447,1763125683363,-166.16186146,0.00030192,60]
[393945448,1763125683393,-150.0,0.00030192,60]
[393945449,1763125683423,-150.0,0.00030192,60]
[393945450,1763125683452,-150.0,0.00030192,60]
[393945451,1763125683482,-500.0,0.00030192,60]
[393945452,1763125683520,-500.0,0.00030192,60]
[393945453,1763125683549,-455.0,0.00030192,60]
[393945454,1763125683742,-500.0,0.00030192,60]
[393945455,1763125683772,-1033.0,0.00030192,60]
[393945456,1763125683800,-150.0,0.00030219,60]
[393945457,1763125683828,-150.0,0.00030219,60]
[393945458,1763125683856,-500.0,0.00030219,60]
[393945459,1763125683882,-150.0,0.00030219,60]
[393945460,1763125683907,-150.0,0.00030219,60]
[393945461,1763125683933,-150.0,0.00030219,60]
[393945462,1763125683960,-150.0,0.00030219,60]
[393945463,1763125683992,-500.0,0.00030219,60]
[393945464,1763125684024,-453.08399798,0.00030219,60]
[393945465,1763125684063,-455.0,0.00030219,60]
[393945466,1763125684094,-500.0,0.00030219,60]
[393945467,1763125684125,-1033.0,0.00030219,60]
[393945468,1763125684154,-208.76777583,0.00030247,60]
[393945469,1763125684184,-199.99999984,0.00030247,60]
[393945470,1763125684213,-500.0,0.00030247,60]
[393945471,1763125684245,-208.41576308,0.00030247,60]
[393945472,1763125684273,-150.0,0.00030247,60]
[393945473,1763125684303,-150.0,0.00030247,60]
[393945474,1763125684333,-150.0,0.00030247,60]
[393945475,1763125684362,-500.0,0.00030247,60]
[393945476,1763125684389,-455.0,0.00030247,60]
[393945477,1763125684417,-500.0,0.00030247,60]
[393945478,1763125684444,-1033.0,0.00030247,60]
[393945479,1763125684472,-500.0,0.00030274,60]
[393945480,1763125684503,-250.0,0.00030274,60]
[393945481,1763125684535,-250.0,0.00030274,60]
[393945482,1763125684563,-250.0,0.00030274,60]
[393945483,1763125684593,-225.20112483,0.00030274,60]
[393945484,1763125684621,-455.0,0.00030274,60]
[393945485,1763125684650,-500.0,0.00030274,60]
[393945486,1763125684678,-1033.0,0.00030274,60]
[393945487,1763125684705,-500.0,0.00030301,60]
[393945488,1763125684734,-455.0,0.00030301,60]
[393945489,1763125684765,-500.0,0.00030301,60]
[393945490,1763125684797,-1033.0,0.00030301,60]
[393945491,1763125684826,-500.0,0.00030329,60]
[393945492,1763125684856,-455.0,0.00030329,60]
[393945493,1763125684886,-500.0,0.00030329,60]
[393945494,1763125684916,-1033.0,0.00030329,60]
[393945495,1763125684947,-500.0,0.00030356,60]
[393945496,1763125684976,-455.0,0.00030356,60]
[393945497,1763125685007,-460.33832977,0.00030356,60]
[393945498,1763125685043,-1033.0,0.00030356,60]
[393945499,1763125685073,-500.0,0.00030384,60]
[393945500,1763125685104,-455.0,0.00030384,60]
[393945501,1763125685135,-1033.0,0.00030384,60]
[393945502,1763125685163,-500.0,0.00030411,60]
[393945503,1763125685191,-455.0,0.00030411,60]
[393945504,1763125685219,-1033.0,0.00030411,60]
[393945505,1763125685247,-551.59567009,0.00030438,60]
[393945506,1763125685275,-455.0,0.00030438,60]
[393945507,1763125685308,-1033.0,0.00030438,60]
[393945508,1763125685337,-455.0,0.00030466,60]
[393945509,1763125685365,-1033.0,0.00030466,60]
[393945510,1763125685393,-455.0,0.00030493,60]
[393945511,1763125685423,-1033.0,0.00030493,60]
[393945512,1763125685453,-455.0,0.00030521,60]